fUSD/lending_fUSD_20241003
["ID","MTS","AMOUNT","RATE_DAILY","PERIOD"]
[339741953,1727921442942,-1458.49,0.0002,2]
[339741954,1727921442952,-968.4,0.0002,2]
[339741955,1727921442961,-905.44,0.0002,2]
[339741956,1727921442971,-615.0478919,0.0002,2]
[339741957,1727921442982,-500.0,0.0002,2]
[339741958,1727921442992,-1510.72,0.0002,2]
[339741960,1727921443003,-748.22,0.0002,2]
[339741961,1727921443014,-500.0,0.0002,2]
[339741963,1727921443025,-1375.07,0.0002,2]
[339741964,1727921443035,-675.09,0.0002,2]
[339741965,1727921443045,-686.5,0.0002,5]
[339741966,1727921443055,-1923.68,0.0002,2]
[339741967,1727921443065,-723.75,0.0002,2]
[339741968,1727921443076,-500.0,0.0002,2]
[339741969,1727921443086,-1212.49,0.0002,2]
[339741970,1727921443096,-1452.89,0.0002,2]
[339741971,1727921443106,-1860.85,0.0002,2]
[339741972,1727921443117,-779.32,0.0002,2]
[339741973,1727921443126,-1238.11,0.0002,2]
[339741974,1727921443137,-780.78,0.0002,2]
[339741975,1727921443148,-500.0,0.0002,2]
[339741976,1727921443159,-831.55,0.0002,2]
[339741977,1727921443169,-500.0,0.0002,2]
[339741978,1727921443179,-422.67101561,0.0002,2]
[339741979,1727921443188,-500.0,0.0002,2]
[339741980,1727921443198,-500.0,0.0002,2]
[339741981,1727921443208,-2011.28,0.0002,2]
[339741982,1727921443218,-246.09117395,0.0002,2]
[339741989,1727921443774,-355.72425126,0.0002,2]
[339741990,1727921443786,-446.83457479,0.0002,2]
[339741991,1727921443796,-500.0,0.0002,2]
[339741992,1727921443806,-500.0,0.0002,2]
[339741993,1727921443816,-500.0,0.0002,2]
[339741994,1727921443827,-390.06464548,0.0002,2]
[339741995,1727921443838,-711.3485025,0.0002,2]
[339741996,1727921443849,-7.80685202,0.0002,2]
[339741997,1727921443859,-348.3890285,0.0002,2]
[339741998,1727921443870,-220.6409715,0.0002,2]
[339741999,1727921443880,-682.01,0.0002,2]
[339742000,1727921443889,-2008.58,0.0002,2]
[339742001,1727921443899,-500.0,0.0002,2]
[339742002,1727921443909,-500.0,0.0002,2]
[339742003,1727921443919,-709.41,0.0002,2]
[339742004,1727921443928,-500.0,0.0002,2]
[339742005,1727921443937,-3122.8,0.0002,2]
[339742006,1727921443947,-2133.73,0.0002,2]
[339742007,1727921443957,-1372.19,0.0002,2]
[339742008,1727921443966,-2830.34,0.0002,2]
[339742009,1727921443976,-500.0,0.0002,2]
[339742010,1727921443985,-500.0,0.0002,2]
[339742011,1727921443995,-500.0,0.0002,2]
[339742012,1727921444004,-1618.89,0.0002,2]
[339742013,1727921444016,-500.0,0.0002,2]
[339742014,1727921444027,-2037.67,0.0002,2]
[339742015,1727921444036,-500.0,0.0002,2]
[339742016,1727921444045,-231.14981766,0.0002,2]
[339742017,1727921444055,-916.25,0.0002,2]
[339742018,1727921444065,-511.02,0.0002,2]
[339742019,1727921444074,-500.0,0.0002,2]
[339742020,1727921444084,-1285.75,0.0002,2]
[339742021,1727921444093,-732.46331479,0.0002,2]
[339742022,1727921444121,-561.81188318,0.00019999,2]
[339742023,1727921444130,-63.48668521,0.0002,2]
[339742024,1727921444140,-500.0,0.0002,2]
[339742025,1727921444150,-923.72,0.0002,2]
[339742026,1727921444159,-500.0,0.0002,2]
[339742027,1727921444168,-500.0,0.0002,2]
[339742028,1727921444178,-892.62,0.0002,2]
[339742029,1727921444187,-2477.32,0.0002,2]
[339742030,1727921444197,-500.0,0.0002,2]
[339742031,1727921444206,-564.15,0.0002,2]
[339742032,1727921444215,-500.0,0.0002,2]
[339742033,1727921444226,-500.0,0.0002,2]
[339742034,1727921444235,-500.0,0.0002,2]
[339742035,1727921444245,-1747.79,0.0002,2]
[339742036,1727921444255,-551.1,0.0002,2]
[339742037,1727921444264,-603.07,0.0002,2]
[339742038,1727921444274,-667.62,0.0002,2]
[339742039,1727921444284,-1797.45,0.0002,2]
[339742040,1727921444293,-1172.86,0.0002,2]
[339742041,1727921444303,-519.23,0.0002,2]
[339742042,1727921444312,-692.46,0.0002,2]
[339742043,1727921444322,-500.0,0.0002,2]
[339742044,1727921444331,-546.57,0.0002,2]
[339742045,1727921444341,-1458.8,0.0002,2]
[339742046,1727921444350,-959.1,0.0002,2]
[339742047,1727921444360,-2553.68,0.0002,2]
[339742048,1727921444369,-739.56,0.0002,2]
[339742049,1727921444379,-1476.81,0.0002,2]
[339742050,1727921444755,-500.0,0.0002,2]
[339742051,1727921444765,-500.0,0.0002,2]
[339742052,1727921444779,-683.67,0.0002,2]
[339742053,1727921444790,-3077.55,0.0002,2]
[339742054,1727921444799,-1021.98,0.0002,2]
[339742055,1727921444811,-601.94,0.0002,2]
[339742056,1727921444822,-1166.12,0.0002,2]
[339742057,1727921444831,-500.0,0.0002,2]
[339742058,1727921444841,-2218.72,0.0002,2]
[339742059,1727921444850,-500.0,0.0002,2]
[339742060,1727921444860,-660.44,0.0002,2]
[339742061,1727921444869,-259.58860701,0.0002,2]
[339742062,1727921444879,-500.0,0.0002,2]
[339742063,1727921444889,-500.0,0.0002,2]
[339742064,1727921444898,-1722.17,0.0002,2]
[339742065,1727921444908,-1217.26,0.0002,2]
[339742066,1727921444917,-2329.5,0.0002,2]
[339742067,1727921444927,-1210.19,0.0002,2]
[339742068,1727921444937,-205.0,0.0002002,2]
[339742069,1727921444947,-202.0,0.0002027,2]
[339742070,1727921444956,-215.0,0.0002027,2]
[339742071,1727921444966,-3293.57,0.00020273,2]
[339742072,1727921444975,-771.34,0.00020273,2]
[339742073,1727921444985,-500.0,0.00020273,2]
[339742074,1727921444995,-2143.19,0.00020273,2]
[339742075,1727921445005,-500.0,0.00020273,2]
[339742076,1727921445015,-346.01543383,0.00020273,2]
[339742077,1727921445028,-728.91456617,0.00020273,2]
[339742078,1727921445038,-500.0,0.00020273,2]
[339742079,1727921445048,-461.06735634,0.00020273,2]
[339742080,1727921445060,-147.36264366,0.00020273,2]
[339742081,1727921445069,-392.79687918,0.00020273,2]
[339742082,1727921445081,-107.20312082,0.00020273,2]
[339742083,1727921445090,-500.0,0.00020273,2]
[339742084,1727921445100,-293.45474146,0.00020273,2]
[339742085,1727921445112,-678.66525854,0.00020273,2]
[339742086,1727921445121,-3.9399733,0.00020273,2]
[339742087,1727921445133,-851.8400267,0.00020273,2]
[339742088,1727921445142,-182.5149733,0.00020273,2]
[339742089,1727921445154,-1035.9650267,0.00020273,2]
[339742090,1727921445163,-644.5,0.00020273,2]
[339742091,1727921445173,-500.0,0.00020273,2]
[339742092,1727921445183,-380.64039858,0.00020273,2]
[339742093,1727921445194,-119.35960142,0.00020273,2]
[339742094,1727921445204,-968.4,0.00020273,2]
[339742095,1727921445213,-905.44,0.00020273,2]
[339742096,1727921445223,-421.27524323,0.00020273,2]
[339742097,1727921445234,-1037.21475677,0.00020273,2]
[339742098,1727921445244,-500.0,0.00020273,2]
[339742099,1727921445253,-1510.72,0.00020273,2]
[339742100,1727921445264,-748.22,0.00020273,2]
[339742101,1727921445273,-14.3853733,0.00020273,2]
[339742102,1727921445285,-485.6146267,0.00020273,2]
[339742103,1727921445295,-1375.07,0.00020273,2]
[339742104,1727921445304,-675.09,0.00020273,2]
[339742105,1727921445314,-686.5,0.00020273,5]
[339742106,1727921445324,-1923.68,0.00020273,2]
[339742107,1727921445333,-723.75,0.00020273,2]
[339742108,1727921445342,-413.73394974,0.00020273,2]
[339742109,1727921445352,-1212.49,0.00020273,2]
[339742110,1727921445362,-1452.89,0.00020273,2]
[339742111,1727921445372,-1283.61561171,0.00020273,2]
[339742112,1727921445384,-577.23438829,0.00020273,2]
[339742113,1727921445393,-779.32,0.00020273,2]
[339742114,1727921445403,-1238.11,0.00020273,2]
[339742115,1727921445413,-780.78,0.00020273,2]
[339742116,1727921445422,-500.0,0.00020273,2]
[339742117,1727921445432,-766.82806239,0.00020273,2]
[339742118,1727921445443,-64.72193761,0.00020273,2]
[339742119,1727921445453,-388.55817543,0.00020273,2]
[339742120,1727921445463,-500.0,0.00020273,2]
[339742121,1727921445472,-464.68745755,0.00020273,2]
[339742122,1727921445481,-2011.28,0.00020273,2]
[339742123,1727921445491,-466.34068839,0.00020273,2]
[339742130,1727921446252,-169.86204471,0.00019078,2]
[339742131,1727921446262,-359.82324629,0.00019178,2]
[339742132,1727921446275,-249.53675371,0.00019178,2]
[339742133,1727921446284,-609.36,0.00019452,2]
[339742134,1727921446293,-609.36,0.00019726,2]
[339742135,1727921446302,-609.36,0.0002,2]
[339742136,1727921446313,-582.30931161,0.00020273,2]
[339742137,1727921446323,-500.0,0.00020273,2]
[339742138,1727921446333,-507.36591449,0.00020273,2]
[339742139,1727921446343,-500.0,0.00020273,2]
[339742140,1727921446354,-1109.22,0.00020273,2]
[339742141,1727921446365,-569.03,0.00020273,2]
[339742142,1727921446376,-682.01,0.00020273,2]
[339742145,1727921446387,-2008.58,0.00020273,2]
[339742146,1727921446396,-500.0,0.00020273,2]
[339742147,1727921446406,-500.0,0.00020273,2]
[339742148,1727921446416,-709.41,0.00020273,2]
[339742149,1727921446426,-500.0,0.00020273,2]
[339742150,1727921446436,-247.12738203,0.00020273,2]
[339742151,1727921446448,-373.5132,0.00020273,2]
[339742152,1727921446460,-489.18296135,0.00020273,2]
[339742153,1727921446480,-362.76485203,0.00020273,2]
[339742154,1727921446491,-484.56846424,0.00020273,2]
[339742155,1727921446502,-1165.64314035,0.00020273,2]
[339742156,1727921446511,-1392.61470545,0.00020273,2]
[339742157,1727921446524,-463.3999995,0.00020273,2]
[339742158,1727921446536,-277.71529505,0.00020273,2]
[339742159,1727921446545,-407.22190204,0.00020273,2]
[339742161,1727921446556,-964.96809796,0.00020273,2]
[339742162,1727921446565,-551.63190204,0.00020273,2]
[339742163,1727921446576,-2278.70809796,0.00020273,2]
[339742164,1727921446586,-188.44190154,0.00020273,2]
[339742165,1727921446597,-311.55809846,0.00020273,2]
[339742166,1727921446606,-500.0,0.00020273,2]
[339742167,1727921446615,-500.0,0.00020273,2]
[339742168,1727921446625,-1618.89,0.00020273,2]
[339742169,1727921446634,-500.0,0.00020273,2]
[339742170,1727921446643,-2037.67,0.00020273,2]
[339742171,1727921446652,-500.0,0.00020273,2]
[339742172,1727921446661,-916.25,0.00020273,2]
[339742173,1727921446671,-511.02,0.00020273,2]
[339742174,1727921446680,-45.06269842,0.00020273,2]
[339742175,1727921446691,-369.64190924,0.00020273,2]
[339742177,1727921446702,-85.29539234,0.00020273,2]
[339742178,1727921446711,-226.47327746,0.00020273,2]
[339742179,1727921446722,-1059.27672254,0.00020273,2]
[339742180,1727921446734,-795.95,0.00020273,2]
[339742181,1727921446743,-500.0,0.00020273,2]
[339742182,1727921446752,-923.72,0.00020273,2]
[339742183,1727921446762,-500.0,0.00020273,2]
[339742184,1727921446771,-554.90868086,0.00020273,2]
[339742185,1727921446787,-892.62,0.00020273,2]
[339742186,1727921446796,-2477.32,0.00020273,2]
[339742187,1727921446806,-500.0,0.00020273,2]
[339742188,1727921446815,-564.15,0.00020273,2]
[339742189,1727921446824,-500.0,0.00020273,2]
[339742190,1727921446834,-500.0,0.00020273,2]
[339742191,1727921446843,-500.0,0.00020273,2]
[339742192,1727921446852,-1747.79,0.00020273,2]
[339742193,1727921446862,-551.1,0.00020273,2]
[339742194,1727921446871,-603.07,0.00020273,2]
[339742195,1727921446880,-667.62,0.00020273,2]
[339742196,1727921446890,-1797.45,0.00020273,2]
[339742197,1727921446900,-1172.86,0.00020273,2]
[339742198,1727921446909,-519.23,0.00020273,2]
[339742199,1727921446919,-692.46,0.00020273,2]
[339742200,1727921446928,-500.0,0.00020273,2]
[339742201,1727921446938,-546.57,0.00020273,2]
[339742202,1727921446947,-1458.8,0.00020273,2]
[339742203,1727921446956,-959.1,0.00020273,2]
[339742204,1727921446965,-2553.68,0.00020273,2]
[339742205,1727921446974,-739.56,0.00020273,2]
[339742206,1727921446983,-1476.81,0.00020273,2]
[339742207,1727921446992,-500.0,0.00020273,2]
[339742208,1727921447002,-683.67,0.00020273,2]
[339742209,1727921447012,-500.0,0.00020273,2]
[339742210,1727921447021,-3077.55,0.00020273,2]
[339742211,1727921447032,-1021.98,0.00020273,2]
[339742212,1727921447041,-601.94,0.00020273,2]
[339742213,1727921447051,-1166.12,0.00020273,2]
[339742214,1727921447060,-500.0,0.00020273,2]
[339742215,1727921447144,-2218.72,0.00020273,2]
[339742216,1727921447154,-500.0,0.00020273,2]
[339742217,1727921447164,-3897.88,0.00020273,2]
[339742218,1727921447173,-1020.05,0.00020273,2]
[339742219,1727921447183,-660.44,0.00020273,2]
[339742220,1727921447192,-500.0,0.00020273,2]
[339742221,1727921447201,-500.0,0.00020273,2]
[339742222,1727921447211,-1722.17,0.00020273,2]
[339742223,1727921447221,-1100.49,0.00020273,2]
[339742224,1727921447230,-1217.26,0.00020273,2]
[339742225,1727921447240,-2329.5,0.00020273,2]
[339742226,1727921447249,-1210.19,0.00020273,2]
[339742227,1727921447258,-609.36,0.00020273,2]
[339742228,1727921447267,-205.0,0.0002051,2]
[339742229,1727921447279,-3293.57,0.00020547,2]
[339742230,1727921447288,-771.34,0.00020547,2]
[339742231,1727921447297,-500.0,0.00020547,2]
[339742232,1727921447306,-2143.19,0.00020547,2]
[339742233,1727921447315,-500.0,0.00020547,2]
[339742234,1727921447325,-1074.93,0.00020547,2]
[339742235,1727921447333,-500.0,0.00020547,2]
[339742236,1727921447342,-608.43,0.00020547,2]
[339742237,1727921447352,-500.0,0.00020547,2]
[339742238,1727921447361,-500.0,0.00020547,2]
[339742239,1727921447370,-972.12,0.00020547,2]
[339742240,1727921447379,-855.78,0.00020547,2]
[339742241,1727921447389,-1218.48,0.00020547,2]
[339742242,1727921447398,-644.5,0.00020547,2]
[339742243,1727921447407,-500.0,0.00020547,2]
[339742244,1727921447416,-500.0,0.00020547,2]
[339742245,1727921447425,-968.4,0.00020547,2]
[339742246,1727921447435,-905.44,0.00020547,2]
[339742247,1727921447444,-1458.49,0.00020547,2]
[339742248,1727921447453,-500.0,0.00020547,2]
[339742249,1727921447462,-1510.72,0.00020547,2]
[339742250,1727921447472,-748.22,0.00020547,2]
[339742251,1727921447481,-500.0,0.00020547,2]
[339742252,1727921447491,-1375.07,0.00020547,2]
[339742253,1727921447499,-675.09,0.00020547,2]
[339742254,1727921447509,-686.5,0.00020547,5]
[339742255,1727921447518,-1923.68,0.00020547,2]
[339742256,1727921447530,-723.75,0.00020547,2]
[339742257,1727921447539,-1212.49,0.00020547,2]
[339742258,1727921447548,-1452.89,0.00020547,2]
[339742259,1727921447558,-1860.85,0.00020547,2]
[339742260,1727921447567,-779.32,0.00020547,2]
[339742261,1727921447575,-1238.11,0.00020547,2]
[339742262,1727921447584,-780.78,0.00020547,2]
[339742263,1727921447593,-500.0,0.00020547,2]
[339742264,1727921447603,-831.55,0.00020547,2]
[339742265,1727921447612,-500.0,0.00020547,2]
[339742266,1727921447621,-2011.28,0.00020547,2]
[339742267,1727921447631,-1048.65,0.00020547,2]
[339742268,1727921447640,-500.0,0.00020547,2]
[339742269,1727921447650,-500.0,0.00020547,2]
[339742270,1727921447659,-1109.22,0.00020547,2]
[339742271,1727921447669,-569.03,0.00020547,2]
[339742272,1727921447679,-682.01,0.00020547,2]
[339742273,1727921447687,-2008.58,0.00020547,2]
[339742274,1727921447696,-500.0,0.00020547,2]
[339742275,1727921447705,-500.0,0.00020547,2]
[339742276,1727921447715,-709.41,0.00020547,2]
[339742278,1727921447725,-500.0,0.00020547,2]
[339742279,1727921447738,-3122.8,0.00020547,2]
[339742280,1727921447747,-2133.73,0.00020547,2]
[339742281,1727921447756,-1372.19,0.00020547,2]
[339742282,1727921447765,-2830.34,0.00020547,2]
[339742283,1727921447774,-500.0,0.00020547,2]
[339742284,1727921447786,-500.0,0.00020547,2]
[339742285,1727921447796,-500.0,0.00020547,2]
[339742286,1727921447807,-1618.89,0.00020547,2]
[339742287,1727921447819,-500.0,0.00020547,2]
[339742288,1727921447829,-2037.67,0.00020547,2]
[339742289,1727921447839,-500.0,0.00020547,2]
[339742290,1727921447848,-916.25,0.00020547,2]
[339742291,1727921447858,-511.02,0.00020547,2]
[339742292,1727921447868,-500.0,0.00020547,2]
[339742293,1727921447877,-1285.75,0.00020547,2]
[339742294,1727921447886,-795.95,0.00020547,2]
[339742295,1727921447895,-500.0,0.00020547,2]
[339742296,1727921447905,-923.72,0.00020547,2]
[339742297,1727921447914,-500.0,0.00020547,2]
[339742298,1727921447924,-892.62,0.00020547,2]
[339742299,1727921447934,-2477.32,0.00020547,2]
[339742300,1727921447944,-500.0,0.00020547,2]
[339742301,1727921447954,-564.15,0.00020547,2]
[339742302,1727921447964,-500.0,0.00020547,2]
[339742303,1727921447974,-500.0,0.00020547,2]
[339742304,1727921447985,-500.0,0.00020547,2]
[339742305,1727921447996,-1747.79,0.00020547,2]
[339742306,1727921448005,-551.1,0.00020547,2]
[339742307,1727921448014,-603.07,0.00020547,2]
[339742308,1727921448023,-667.62,0.00020547,2]
[339742309,1727921448034,-1797.45,0.00020547,2]
[339742310,1727921448043,-1172.86,0.00020547,2]
[339742311,1727921448052,-519.23,0.00020547,2]
[339742312,1727921448061,-692.46,0.00020547,2]
[339742313,1727921448071,-500.0,0.00020547,2]
[339742314,1727921448080,-546.57,0.00020547,2]
[339742315,1727921448089,-1458.8,0.00020547,2]
[339742316,1727921448098,-959.1,0.00020547,2]
[339742317,1727921448107,-2553.68,0.00020547,2]
[339742318,1727921448116,-739.56,0.00020547,2]
[339742319,1727921448125,-1476.81,0.00020547,2]
[339742320,1727921448135,-500.0,0.00020547,2]
[339742321,1727921448144,-500.0,0.00020547,2]
[339742322,1727921448154,-683.67,0.00020547,2]
[339742323,1727921448163,-3077.55,0.00020547,2]
[339742324,1727921448172,-1021.98,0.00020547,2]
[339742325,1727921448181,-601.94,0.00020547,2]
[339742326,1727921448190,-1166.12,0.00020547,2]
[339742327,1727921448199,-500.0,0.00020547,2]
[339742328,1727921448209,-2218.72,0.00020547,2]
[339742329,1727921448218,-500.0,0.00020547,2]
[339742330,1727921448227,-3897.88,0.00020547,2]
[339742331,1727921448236,-1020.05,0.00020547,2]
[339742332,1727921448245,-660.44,0.00020547,2]
[339742333,1727921448255,-500.0,0.00020547,2]
[339742334,1727921448264,-500.0,0.00020547,2]
[339742335,1727921448273,-1722.17,0.00020547,2]
[339742336,1727921448284,-1100.49,0.00020547,2]
[339742337,1727921448294,-1217.26,0.00020547,2]
[339742338,1727921448303,-2329.5,0.00020547,2]
[339742339,1727921448313,-1210.19,0.00020547,2]
[339742340,1727921448322,-609.36,0.00020547,2]
[339742341,1727921448331,-202.0,0.0002064,2]
[339742342,1727921448340,-215.0,0.0002064,2]
[339742343,1727921448350,-3293.57,0.00020821,2]
[339742344,1727921448359,-771.34,0.00020821,2]
[339742345,1727921448368,-500.0,0.00020821,2]
[339742346,1727921448377,-2143.19,0.00020821,2]
[339742347,1727921448388,-500.0,0.00020821,2]
[339742348,1727921448397,-1074.93,0.00020821,2]
[339742349,1727921448407,-500.0,0.00020821,2]
[339742350,1727921448416,-608.43,0.00020821,2]
[339742351,1727921448426,-500.0,0.00020821,2]
[339742352,1727921448435,-500.0,0.00020821,2]
[339742353,1727921448445,-972.12,0.00020821,2]
[339742354,1727921448454,-855.78,0.00020821,2]
[339742355,1727921448463,-1218.48,0.00020821,2]
[339742356,1727921448473,-644.5,0.00020821,2]
[339742357,1727921448483,-500.0,0.00020821,2]
[339742358,1727921448492,-500.0,0.00020821,2]
[339742359,1727921448502,-968.4,0.00020821,2]
[339742360,1727921448512,-905.44,0.00020821,2]
[339742361,1727921448522,-1458.49,0.00020821,2]
[339742362,1727921448535,-500.0,0.00020821,2]
[339742363,1727921448545,-1510.72,0.00020821,2]
[339742364,1727921448555,-748.22,0.00020821,2]
[339742365,1727921448565,-500.0,0.00020821,2]
[339742366,1727921448575,-1375.07,0.00020821,2]
[339742367,1727921448585,-675.09,0.00020821,2]
[339742368,1727921448595,-686.5,0.00020821,5]
[339742369,1727921448605,-1923.68,0.00020821,2]
[339742370,1727921448615,-723.75,0.00020821,2]
[339742371,1727921448625,-1212.49,0.00020821,2]
[339742372,1727921448635,-1452.89,0.00020821,2]
[339742373,1727921448645,-1860.85,0.00020821,2]
[339742374,1727921448654,-779.32,0.00020821,2]
[339742375,1727921448664,-1238.11,0.00020821,2]
[339742376,1727921448674,-780.78,0.00020821,2]
[339742377,1727921448684,-500.0,0.00020821,2]
[339742378,1727921448694,-831.55,0.00020821,2]
[339742379,1727921448704,-500.0,0.00020821,2]
[339742380,1727921448714,-2011.28,0.00020821,2]
[339742381,1727921448724,-1048.65,0.00020821,2]
[339742382,1727921448736,-500.0,0.00020821,2]
[339742383,1727921448746,-500.0,0.00020821,2]
[339742384,1727921448756,-1109.22,0.00020821,2]
[339742385,1727921448766,-569.03,0.00020821,2]
[339742386,1727921448775,-682.01,0.00020821,2]
[339742387,1727921448786,-2008.58,0.00020821,2]
[339742388,1727921448796,-500.0,0.00020821,2]
[339742390,1727921448806,-500.0,0.00020821,2]
[339742391,1727921448815,-500.0,0.00020821,2]
[339742392,1727921448826,-3122.8,0.00020821,2]
[339742393,1727921448836,-709.41,0.00020821,2]
[339742394,1727921448846,-2133.73,0.00020821,2]
[339742395,1727921448855,-1372.19,0.00020821,2]
[339742396,1727921448864,-2830.34,0.00020821,2]
[339742397,1727921448874,-500.0,0.00020821,2]
[339742398,1727921448883,-500.0,0.00020821,2]
[339742399,1727921448892,-500.0,0.00020821,2]
[339742400,1727921448901,-1618.89,0.00020821,2]
[339742401,1727921448910,-500.0,0.00020821,2]
[339742402,1727921448920,-2037.67,0.00020821,2]
[339742403,1727921448930,-500.0,0.00020821,2]
[339742404,1727921448939,-916.25,0.00020821,2]
[339742405,1727921448948,-511.02,0.00020821,2]
[339742406,1727921448957,-500.0,0.00020821,2]
[339742407,1727921448968,-1285.75,0.00020821,2]
[339742408,1727921448977,-795.95,0.00020821,2]
[339742409,1727921448987,-500.0,0.00020821,2]
[339742410,1727921448996,-923.72,0.00020821,2]
[339742411,1727921449006,-500.0,0.00020821,2]
[339742412,1727921449016,-892.62,0.00020821,2]
[339742413,1727921449027,-2477.32,0.00020821,2]
[339742414,1727921449038,-500.0,0.00020821,2]
[339742415,1727921449047,-564.15,0.00020821,2]
[339742416,1727921449057,-500.0,0.00020821,2]
[339742417,1727921449067,-500.0,0.00020821,2]
[339742418,1727921449077,-512.77656937,0.00020821,2]
[339742419,1727921449086,-374.3706668,0.00020821,2]
[339742420,1727921449101,-1373.4193332,0.00020821,2]
[339742421,1727921449111,-551.1,0.00020821,2]
[339742422,1727921449121,-361.30238394,0.00020821,2]
[339742423,1727921449134,-241.76761606,0.00020821,2]
[339742424,1727921449144,-332.64143392,0.00020821,2]
[339742425,1727921449156,-334.97856608,0.00020821,2]
[339742426,1727921449166,-1797.45,0.00020821,2]
[339742427,1727921449176,-1172.86,0.00020821,2]
[339742428,1727921449186,-519.23,0.00020821,2]
[339742429,1727921449195,-692.46,0.00020821,2]
[339742430,1727921449204,-500.0,0.00020821,2]
[339742431,1727921449214,-546.57,0.00020821,2]
[339742432,1727921449223,-1458.8,0.00020821,2]
[339742433,1727921449232,-959.1,0.00020821,2]
[339742434,1727921449241,-757.55422335,0.00020821,2]
[339742435,1727921449322,-1796.12577665,0.00020821,2]
[339742436,1727921449331,-739.56,0.00020821,2]
[339742437,1727921449341,-729.32483259,0.00020821,2]
[339742438,1727921449352,-307.22261348,0.00020821,2]
[339742439,1727921449363,-440.26255393,0.00020821,2]
[339742440,1727921449373,-348.28207695,0.00020821,2]
[339742441,1727921449383,-478.99166679,0.00020821,2]
[339742442,1727921449395,-24.04870093,0.00020821,2]
[339742443,1727921449405,-683.67,0.00020821,2]
[339742444,1727921449415,-532.94443967,0.00020821,2]
[339742445,1727921449427,-305.67881732,0.00020821,2]
[339742446,1727921449438,-1068.93575573,0.00020821,2]
[339742447,1727921449450,-455.24917089,0.00020821,2]
[339742448,1727921449461,-714.74181639,0.00020821,2]
[339742449,1727921449471,-953.28115469,0.00020821,2]
[339742450,1727921449483,-68.69884531,0.00020821,2]
[339742451,1727921449493,-601.94,0.00020821,2]
[339742452,1727921449503,-322.4885151,0.00020821,2]
[339742453,1727921449514,-738.48,0.00020821,2]
[339742454,1727921449526,-105.1514849,0.00020821,2]
[339742455,1727921449536,-428.81387202,0.00020821,2]
[339742456,1727921449548,-71.18612798,0.00020821,2]
[339742457,1727921449558,-2218.72,0.00020821,2]
[339742458,1727921449567,-500.0,0.00020821,2]
[339742459,1727921449578,-3897.88,0.00020821,2]
[339742460,1727921449587,-1020.05,0.00020821,2]
[339742461,1727921449597,-660.44,0.00020821,2]
[339742462,1727921449606,-500.0,0.00020821,2]
[339742463,1727921449616,-500.0,0.00020821,2]
[339742464,1727921449625,-1722.17,0.00020821,2]
[339742465,1727921449635,-1100.49,0.00020821,2]
[339742466,1727921449644,-411.62650865,0.00020821,2]
[339742467,1727921449656,-805.63349135,0.00020821,2]
[339742468,1727921449666,-2329.5,0.00020821,2]
[339742469,1727921449675,-1210.19,0.00020821,2]
[339742470,1727921449684,-609.36,0.00020821,2]
[339742471,1727921449694,-500.0,0.00020832,2]
[339742472,1727921449704,-2309.31821675,0.00020892,2]